fUSD/lending_fUSD_20251002
["ID","MTS","AMOUNT","RATE_DAILY","PERIOD"]
[388860553,1759432251952,-1583.65,0.00019118,2]
[388860554,1759432251962,-54072.13052992,0.0001915,2]
[388860555,1759432252111,50000.0,0.00031976,61]
[388860556,1759432253747,50000.0,0.00031976,62]
[388860557,1759432255406,50000.0,0.00031976,63]
[388860558,1759432260051,50000.0,0.00031976,64]
[388860559,1759432262879,200.0,0.00031976,120]
[388860562,1759432376963,500.0,0.00030136,120]
[388860566,1759432561708,200.0,0.00031977,120]
[388860567,1759432862143,200.0,0.0003197,120]
[388860568,1759433084654,500.0,0.00030136,120]
[388860569,1759433117607,560.0167546,0.0003013,120]
[388860570,1759433118805,1600.0,0.00026172,120]
[388860571,1759433126887,3769.74798225,0.0003013,120]
[388860573,1759433132355,374.2165525,0.0002,120]
[388860575,1759433160896,200.0,0.0003197,120]
[388860576,1759433285495,2778.12003537,0.0003,120]
[388860577,1759433290823,4382.39555811,0.0001439,2]
[388860580,1759433322133,9988.00832888,0.00031974,60]
[388860581,1759433322650,319.33718055,0.0001,2]
[388860582,1759433322700,6655.85643704,0.00015,2]
[388860583,1759433322836,2097.28764512,0.00031974,120]
[388860623,1759433432064,-300.0,0.00016709,2]
[388860624,1759433432074,-300.0,0.00016709,2]
[388860625,1759433432083,-1200.0,0.00016709,2]
[388860626,1759433432092,-300.0,0.00016709,2]
[388860627,1759433432102,-2500.0,0.00016709,2]
[388860628,1759433432113,-591.49400001,0.0001671,2]
[388860629,1759433432126,-632.09283301,0.0001671,2]
[388860630,1759433432137,-12085.24679999,0.0001671,2]
[388860631,1759433432149,-2774.295589,0.0001671,2]
[388860632,1759433432161,-258.87161287,0.0001671,2]
[388860633,1759433432173,-3653.93745374,0.0001671,2]
[388860634,1759433432193,-769.3474578,0.0001671,2]
[388860635,1759433432204,-2634.40425358,0.0001671,2]
[388860636,1759433432213,-1427.98962406,0.00016794,2]
[388860637,1759433432225,-1072.01037594,0.00016794,2]
[388860638,1759433432235,-2500.0,0.00016794,2]
[388860639,1759433432244,-2500.0,0.00016794,2]
[388860640,1759433432254,-195.0,0.000168,2]
[388860641,1759433432263,-195.0,0.00016859,2]
[388860642,1759433432272,-155.64523298,0.0001689,2]
[388860643,1759433432281,-300.0,0.00016895,2]
[388860644,1759433432291,-500.0,0.000169,2]
[388860645,1759433432300,-590.73069731,0.000169,2]
[388860646,1759433432309,-155.64523298,0.00016901,2]
[388860647,1759433432318,-300.0,0.00016906,2]
[388860648,1759433432328,-155.64523298,0.00016912,2]
[388860649,1759433432337,-4454.57728284,0.00016912,2]
[388860650,1759433432347,-195.0,0.00016925,2]
[388860651,1759433432356,-848.58,0.0001699,3]
[388860652,1759433432365,-151.0,0.00016997,2]
[388860653,1759433432374,-1200.0,0.00016998,2]
[388860654,1759433432384,-550.0,0.00016998,2]
[388860655,1759433432393,-500.0,0.00016999,2]
[388860656,1759433432403,-256.95319253,0.00016999,2]
[388860657,1759433432412,-500.0,0.00016999,2]
[388860658,1759433432421,-527.38729998,0.00016999,2]
[388860659,1759433432430,-500.0,0.00016999,2]
[388860660,1759433432440,-500.0,0.00016999,2]
[388860661,1759433432449,-500.0,0.00016999,2]
[388860662,1759433432458,-500.0,0.00016999,2]
[388860663,1759433432467,-500.0,0.00016999,2]
[388860664,1759433432477,-500.0,0.00016999,2]
[388860665,1759433432486,-500.0,0.00016999,2]
[388860666,1759433432495,-500.0,0.00016999,2]
[388860667,1759433432505,-500.0,0.00016999,2]
[388860668,1759433432514,-500.0,0.00016999,2]
[388860669,1759433432523,-500.0,0.00016999,2]
[388860670,1759433432533,-500.0,0.00016999,2]
[388860671,1759433432542,-500.0,0.00016999,2]
[388860672,1759433432551,-500.0,0.00016999,2]
[388860673,1759433432560,-500.0,0.00016999,2]
[388860674,1759433432571,-500.0,0.00016999,2]
[388860675,1759433432580,-500.0,0.00016999,2]
[388860676,1759433432590,-500.0,0.00016999,2]
[388860677,1759433432600,-500.0,0.00016999,2]
[388860678,1759433432610,-500.0,0.00016999,2]
[388860679,1759433432620,-500.0,0.00016999,2]
[388860680,1759433432630,-500.0,0.00016999,2]
[388860681,1759433432639,-500.0,0.00016999,2]
[388860682,1759433432648,-500.0,0.00016999,2]
[388860683,1759433432658,-500.0,0.00016999,2]
[388860684,1759433432667,-500.0,0.00016999,2]
[388860685,1759433432677,-500.0,0.00016999,2]
[388860686,1759433432687,-500.0,0.00016999,2]
[388860687,1759433432696,-500.0,0.00016999,2]
[388860688,1759433432707,-500.0,0.00016999,2]
[388860689,1759433432716,-500.0,0.00016999,2]
[388860690,1759433432726,-500.0,0.00016999,2]
[388860691,1759433432735,-500.0,0.00016999,2]
[388860692,1759433432745,-500.0,0.00016999,2]
[388860693,1759433432754,-500.0,0.00016999,2]
[388860694,1759433432764,-452.06412282,0.00016999,2]
[388860695,1759433432778,-500.0,0.00016999,2]
[388860696,1759433432787,-500.0,0.00016999,2]
[388860697,1759433432796,-500.0,0.00016999,2]
[388860698,1759433432806,-500.0,0.00016999,2]
[388860699,1759433432818,-500.0,0.00016999,2]
[388860700,1759433432827,-500.0,0.00016999,2]
[388860701,1759433432837,-650.0,0.00016999,2]
[388860702,1759433432849,-500.0,0.00016999,2]
[388860703,1759433432860,-500.0,0.00016999,2]
[388860704,1759433432870,-500.0,0.00016999,2]
[388860705,1759433432879,-162.196709,0.00016999,2]
[388860706,1759433433104,-211.64543909,0.00016999,2]
[388860707,1759433433117,-226.95087588,0.00016999,2]
[388860708,1759433433127,-230.59014448,0.00016999,2]
[388860709,1759433433136,-500.0,0.00016999,2]
[388860710,1759433433146,-330.68765698,0.00016999,2]
[388860711,1759433433156,-384.11471759,0.00016999,2]
[388860712,1759433433166,-500.0,0.00016999,2]
[388860713,1759433433175,-990.782,0.00017,2]
[388860714,1759433433185,-150.67581666,0.00017,2]
[388860715,1759433433195,-160769.04165845,0.00017,2]
[388860716,1759433433204,-9999.99,0.00017,2]
[388860717,1759433433214,-1687.72,0.00017,2]
[388860718,1759433433223,-89759.876517,0.00017,2]
[388860719,1759433433235,-9026.65615887,0.00017,2]
[388860720,1759433434026,150.0,0.00030136,120]
[388860721,1759433435299,-300.02,0.00017,2]
[388860733,1759433435989,-889.59999934,0.00017,2]
[388860734,1759433436442,-605.26815439,0.00017,2]
[388860735,1759433436473,-4507.09999999,0.00017,2]
[388860736,1759433436486,-42283.25124139,0.00017,2]
[388860737,1759433436497,-499.50743547,0.00017,2]
[388860738,1759433436509,-2666.0,0.00017,2]
[388860739,1759433436601,-540.8815492,0.00017,2]
[388860740,1759433436612,-460.14402537,0.00017,2]
[388860751,1759433438031,-4642.20000232,0.00017,2]
[388860752,1759433438044,-1234.4063188,0.00017,2]
[388860753,1759433438074,-551.09530478,0.00017,2]
[388860754,1759433438087,-2005.5,0.00017,2]
[388860755,1759433438159,-4003.30922368,0.00017,2]
[388860756,1759433438172,-991.50000018,0.00017,2]
[388860765,1759433439980,-300.22268464,0.00017,2]
[388860766,1759433439992,-424.8418315,0.00017,2]
[388860767,1759433440004,-5747.41156217,0.00017,2]
[388860768,1759433440082,-293.7335811,0.00017,2]
[388860769,1759433440140,-1314.39753173,0.00017,2]
[388860770,1759433440156,-4604.6499959,0.00017,2]
[388860771,1759433440168,-937.24230004,0.00017,2]
[388860772,1759433440198,-17521.39397772,0.00017,2]
[388860786,1759433443323,-2420.8,0.00017,2]
[388860788,1759433443334,-474.78029465,0.00017,2]
[388860790,1759433443346,-91541.10063629,0.00017,2]
[388860791,1759433443355,-500.0,0.00017,2]
[388860793,1759433443367,-500.0,0.00017,2]
[388860795,1759433443376,-500.0,0.00017,2]
[388860796,1759433443385,-170.0,0.000172,2]
[388860798,1759433443394,-6297.12,0.00017348,2]
[388860800,1759433443404,-1864.03,0.00017378,2]
[388860801,1759433443413,-1600.0,0.00017448,2]
[388860803,1759433443422,-4454.57728276,0.00017457,2]
[388860804,1759433443432,-1000.0,0.00017548,2]
[388860806,1759433443441,-1000.0,0.00017548,2]
[388860808,1759433443451,-920.8102741,0.00017548,2]
[388860810,1759433443468,-786.61900552,0.00017654,2]
[388860812,1759433443481,-165.48,0.00017887,2]
[388860814,1759433443491,-684.25,0.00017907,2]
[388860816,1759433443501,-1500.0,0.00017913,2]
[388860818,1759433443510,-151.0,0.00017926,2]
[388860819,1759433443519,-322.6107,0.00017926,2]
[388860821,1759433443529,-151.0,0.00017926,2]
[388860823,1759433443539,-500.0,0.00017926,2]
[388860825,1759433443549,-646.65982734,0.00017926,2]
[388860827,1759433443559,-500.0,0.00017926,2]
[388860828,1759433443568,-500.0,0.00017926,2]
[388860830,1759433443578,-500.0,0.00017926,2]
[388860832,1759433443587,-500.0,0.00017926,2]
[388860834,1759433443596,-500.0,0.00017926,2]
[388860835,1759433443606,-500.0,0.00017926,2]
[388860837,1759433443616,-500.0,0.00017926,2]
[388860839,1759433443626,-500.0,0.00017926,2]
[388860841,1759433443635,-8565.75555911,0.00017926,2]
[388860843,1759433443644,-621.78829552,0.00017926,2]
[388860844,1759433443654,-500.0,0.00017926,2]
[388860846,1759433443663,-500.0,0.00017926,2]
[388860848,1759433443672,-500.0,0.00017926,2]
[388860850,1759433443682,-220.0,0.00017926,2]
[388860852,1759433443692,-500.0,0.00017926,2]
[388860853,1759433443702,-220.0,0.00017926,2]
[388860854,1759433443711,-500.0,0.00017926,2]
[388860855,1759433443720,-341.83629933,0.00017926,2]
[388860857,1759433443730,-220.0,0.00017926,2]
[388860859,1759433443739,-413.44549327,0.00017926,2]
[388860862,1759433443749,-220.0,0.00017926,2]
[388860865,1759433443758,-220.0,0.00017926,2]
[388860868,1759433443769,-1697.94043194,0.00017926,2]
[388860871,1759433443782,-220.0,0.00017926,2]
[388860874,1759433443791,-220.0,0.00017926,2]
[388860876,1759433443801,-280.11219275,0.00017926,2]
[388860877,1759433443810,-151.0,0.00017926,2]
[388860878,1759433443822,-248.71531821,0.00017926,2]
[388860879,1759433443831,-500.0,0.00017926,2]
[388860880,1759433443840,-500.0,0.00017926,2]
[388860881,1759433443853,-500.0,0.00017926,2]
[388860882,1759433443862,-500.0,0.00017926,2]
[388860883,1759433443873,-500.0,0.00017926,2]
[388860884,1759433443883,-500.0,0.00017926,2]
[388860885,1759433443893,-500.0,0.00017926,2]
[388860886,1759433443902,-500.0,0.00017926,2]
[388860887,1759433443912,-500.0,0.00017926,2]
[388860888,1759433443921,-500.0,0.00017926,2]
[388860889,1759433443931,-331.11019284,0.00017926,2]
[388860890,1759433443941,-1208.25,0.00017927,2]
[388860891,1759433443951,-151.0,0.00017934,2]
[388860892,1759433443960,-8552.57172847,0.00017937,2]
[388860893,1759433443974,-1685.38,0.00017937,2]
[388860894,1759433443986,-6913.89827153,0.00017937,2]
[388860895,1759433443995,-318.28,0.00017944,2]
[388860896,1759433444005,-5000.118424,0.00017981,2]
[388860897,1759433444208,-505.96403242,0.00017981,2]
[388860898,1759433444240,-262.734,0.00017981,2]
[388860899,1759433444251,-2383.60504617,0.00017981,2]
[388860900,1759433444263,-500.0,0.00017981,2]
[388860934,1759433446857,-230.26701221,0.00017981,2]
[388860935,1759433446867,-361.5685342,0.00018002,2]
[388860936,1759433446960,-4093.00874856,0.00018002,2]
[388860937,1759433446970,-9120.72600018,0.00018036,2]
[388860938,1759433447186,-90.62198967,0.00018036,2]
[388860939,1759433447196,-169.95,0.0001805,2]
[388860940,1759433447206,-627.97661879,0.00018091,2]
[388860941,1759433447233,-598.4999999,0.00018091,2]
[388860942,1759433447244,-1210.5,0.00018091,2]
[388860943,1759433461768,200.0,0.00031974,120]
[388860945,1759433527851,50000.0,0.00031974,60]
[388860946,1759433531983,50000.0,0.00031974,61]
[388860947,1759433535086,50000.0,0.00031974,62]
[388860948,1759433538397,50000.0,0.00031974,63]
[388860949,1759433542218,50000.0,0.00031974,64]
[388860950,1759433557030,50000.0,0.00031974,60]
[388860951,1759433563051,50000.0,0.00031974,61]
[388860952,1759433566862,50000.0,0.00031974,62]
[388860953,1759433570187,500.0,0.00030136,120]
[388860954,1759433570345,50000.0,0.00031974,63]
[388860955,1759433574096,50000.0,0.00031974,64]
[388860958,1759433761808,200.0,0.00031974,120]
[388860960,1759433949421,-300.0,0.00016737,2]
[388860961,1759434060917,200.0,0.00031986,120]
[388860962,1759434080538,5618.0,0.0003013,120]
[388860963,1759434136249,2403.0,0.00031987,60]
[388860964,1759434148794,2404.0,0.00031987,60]
[388860965,1759434150192,2625.89592776,0.00031987,60]
[388860966,1759434150801,3051.85450481,0.00031987,120]
[388860967,1759434155701,2404.0,0.00031987,60]
[388860968,1759434160855,500.0,0.00030136,120]
[388860969,1759434161346,2406.0,0.00031987,60]
[388860970,1759434189225,3000.0,0.00031987,120]
[388860971,1759434196938,2000.0,0.00025234,120]
[388860972,1759434197156,2000.0,0.00026676,120]
[388860973,1759434197307,2000.0,0.00028117,120]
[388860974,1759434205533,2000.0,0.00029906,120]
[388860975,1759434210766,426.69410193,0.00031987,120]
[388860976,1759434220281,1000.0,0.00016438,2]
[388860978,1759434250578,1000.0,0.00030137,120]
[388860979,1759434253086,399.020549,0.00016571,2]
[388860980,1759434266619,581.71917505,0.00031987,60]
[388860981,1759434275488,150.0,0.00030136,120]
[388860983,1759434303159,378.63355452,0.00030137,120]
[388860984,1759434303486,160.76950989,0.00031987,120]
[388860985,1759434303516,481.76508176,0.00031987,120]
[388860986,1759434303548,500.0,0.00030137,120]
[388860987,1759434303582,302.0,0.00030137,120]
[388860988,1759434361617,200.0,0.00031987,120]
[388860989,1759434368094,1795.01,0.00031987,120]
[388860990,1759434368284,1795.01,0.00031987,120]
[388860991,1759434368547,1795.01,0.00031987,120]
[388860992,1759434368780,1795.01,0.00031987,120]
[388860993,1759434372193,1795.01,0.00031987,120]
[388860994,1759434372447,1795.01,0.00031987,120]
[388860995,1759434372685,1795.01,0.00031987,120]
[388860996,1759434372942,1795.01,0.00031987,120]
[388860997,1759434373180,1795.01,0.00031987,120]
[388860998,1759434373784,1795.01,0.00031987,120]
[388860999,1759434374034,1795.01,0.00031987,120]
[388861000,1759434374287,1795.01,0.00031987,120]
[388861001,1759434374736,1795.01,0.00031987,120]
[388861002,1759434375098,1795.01,0.00031987,120]
[388861003,1759434375254,1795.01,0.00031987,120]
[388861004,1759434375778,1795.01,0.00031987,120]
[388861005,1759434375962,1795.01,0.00031987,120]
[388861006,1759434376066,1795.01,0.00031987,120]
[388861007,1759434376309,1795.01,0.00031987,120]
[388861008,1759434376541,1795.01,0.00031987,120]
[388861009,1759434376772,1795.01,0.00031987,120]
[388861010,1759434377062,1795.01,0.00031987,120]
[388861011,1759434377271,1795.01,0.00031987,120]
[388861012,1759434377871,1795.07523537,0.00031987,120]
[388861013,1759434378769,532.01231663,0.00031987,95]
[388861014,1759434407919,229.07,0.0002609,120]
[388861015,1759434428620,-473.08,0.00016654,2]
[388861016,1759434428642,-73.49116026,0.00016655,2]
[388861017,1759434497393,3570.98,0.00031987,60]
[388861018,1759434561079,50000.0,0.000301,120]
[388861019,1759434603139,500.0,0.00030137,120]
[388861020,1759434614781,1227.12359723,0.00031987,80]
[388861021,1759434615389,158.0,0.00029139,120]
[388861022,1759434621688,1500.0,0.0003,120]
[388861032,1759434632532,-251.5623387,0.00016612,2]
[388861033,1759434632542,-481.2118613,0.00016633,2]
[388861034,1759434632560,-266.57761665,0.00016633,2]
[388861035,1759434632583,-1252.21052205,0.00016633,2]
[388861036,1759434632593,-2000.0,0.00016647,2]
[388861037,1759434632602,-506.56906903,0.00016647,2]
[388861040,1759434632641,-846.08178266,0.00016647,2]
[388861042,1759434632652,-121.50883974,0.00016655,2]
[388861044,1759434632662,-226.7822776,0.00016655,2]
[388861046,1759434632673,-73.2177224,0.00016655,2]
[388861048,1759434632683,-250.0,0.00016655,2]
[388861050,1759434632692,-580.4159441,0.00016656,2]
[388861087,1759434638237,-1919.5840559,0.00016656,2]
[388861089,1759434638247,-309.60027042,0.00016712,2]
[388861091,1759434638259,-204.39972958,0.00016712,2]
[388861093,1759434638269,-300.0,0.00016712,2]
[388861095,1759434638279,-152.0,0.00016712,2]
[388861097,1759434638289,-1200.0,0.00016712,2]
[388861099,1759434638300,-300.0,0.00016712,2]
[388861101,1759434638310,-2500.0,0.00016713,2]
[388861103,1759434638320,-2500.0,0.00016713,2]
[388861105,1759434638330,-2631.52450252,0.00016713,2]
[388861106,1759434638339,-341.44,0.00016724,2]
[388861107,1759434638349,-546.571,0.00016737,2]
[388861108,1759434638359,-150.0,0.00016774,2]
[388861109,1759434638369,-250.0,0.00016831,2]
[388861110,1759434638379,-401.21,0.00016857,2]
[388861111,1759434638389,-550.0,0.00016979,2]
[388861112,1759434638398,-151.0,0.0001698,2]
[388861113,1759434638408,-151.0,0.0001698,2]
[388861114,1759434638418,-151.0,0.0001698,2]
[388861115,1759434638428,-151.0,0.0001698,2]
[388861116,1759434638438,-151.0,0.0001698,2]
[388861117,1759434638448,-151.0,0.0001698,2]
[388861119,1759434638457,-151.0,0.0001698,2]
[388861120,1759434638466,-199.26053628,0.0001698,2]
[388861122,1759434638476,-151.0,0.0001698,2]
[388861124,1759434638486,-151.0,0.0001698,2]
[388861126,1759434638496,-151.0,0.0001698,2]
[388861127,1759434638507,-151.0,0.0001698,2]
[388861128,1759434638517,-151.0,0.0001698,2]
[388861129,1759434638527,-200.0,0.0001698,2]
[388861130,1759434638537,-151.0,0.0001698,2]
[388861131,1759434638547,-151.0,0.0001698,2]
[388861132,1759434638557,-200.0,0.0001698,2]
[388861133,1759434638567,-151.0,0.0001698,2]
[388861134,1759434638577,-175.9071572,0.0001698,2]
[388861135,1759434638588,-200.0,0.0001698,2]
[388861136,1759434638598,-151.0,0.0001698,2]
[388861137,1759434638607,-151.0,0.0001698,2]
[388861138,1759434638617,-151.0,0.0001698,2]
[388861139,1759434638627,-151.0,0.0001698,2]
[388861140,1759434638637,-500.0,0.0001698,2]
[388861141,1759434638646,-500.0,0.0001698,2]
[388861142,1759434638656,-288.48908109,0.0001698,2]
[388861143,1759434638686,-211.51091891,0.0001698,2]
[388861144,1759434638695,-500.0,0.0001698,2]
[388861145,1759434638705,-432.59067889,0.0001698,2]
[388861146,1759434638715,-151.0,0.0001698,2]
[388861147,1759434638724,-4822.23908829,0.0001699,2]
[388861148,1759434638740,-8112.28062563,0.0001699,2]
[388861149,1759434638750,-250.0,0.00017,2]
[388861150,1759434638760,-248.71531821,0.00017089,2]
[388861151,1759434638770,-339.48163206,0.00017089,2]
[388861152,1759434638780,-646.65982734,0.00017089,2]
[388861153,1759434638790,-324.96626499,0.00017089,2]
[388861154,1759434638800,-480.53416148,0.00017089,2]
[388861155,1759434638811,-141.25413404,0.00017089,2]
[388861156,1759434638821,-322.6107,0.00017089,2]
[388861157,1759434638831,-4176.13516596,0.00017089,2]
[388861159,1759434642850,-4389.62039315,0.00017089,2]
[388861160,1759434642860,-151.0,0.00017089,2]
[388861161,1759434642871,-167.0,0.000171,2]
[388861162,1759434642880,-7693.07646126,0.00017144,2]
[388861163,1759434642890,-4114.52754047,0.00017387,2]
[388861164,1759434642901,-473.08,0.00017487,2]
[388861165,1759434642911,-7204.04216601,0.00017557,2]
[388861166,1759434642922,-823.89783399,0.00017557,2]
[388861167,1759434642932,-551.73814344,0.00017575,2]
[388861171,1759434643071,-132.1191194,0.00017575,2]
[388861172,1759434643083,-2751.0,0.00017577,2]
[388861173,1759434643097,-1066.56239455,0.00017603,2]
[388861174,1759434643148,-484.97760545,0.00017603,2]
[388861175,1759434643159,-610.0,0.00017613,2]
[388861177,1759434643170,-866.92,0.0001768,2]
[388861179,1759434643180,-666.0,0.00017723,3]
[388861180,1759434643190,-848.83,0.00017786,2]
[388861181,1759434643202,-14767.51640441,0.00017869,2]
[388861182,1759434643211,-233.4,0.00017906,2]
[388861183,1759434643223,-3453.01083,0.0001793,2]
[388861185,1759434643233,-500.0,0.00017968,2]
[388861187,1759434643243,-370.79488399,0.00017968,2]
[388861189,1759434643253,-500.0,0.00017968,2]
[388861191,1759434643262,-500.0,0.00017968,2]
[388861193,1759434643272,-500.0,0.00017968,2]
[388861195,1759434643281,-500.0,0.00017968,2]
[388861196,1759434643291,-508.55073576,0.00017968,2]
[388861197,1759434643301,-500.0,0.00017968,2]
[388861198,1759434643311,-500.0,0.00017968,2]
[388861199,1759434643321,-621.84,0.00017968,2]
[388861200,1759434643332,-500.0,0.00017968,2]
[388861201,1759434643341,-17065.37301726,0.00017969,2]
[388861202,1759434643491,-185.09996033,0.00017969,2]
[388861203,1759434643545,-1115.16015997,0.00017969,2]
[388861204,1759434643576,-27694.3249634,0.00017969,2]
[388861205,1759434643665,-1498.0801661,0.00017969,2]
[388861206,1759434643677,-1032.19198997,0.00017969,2]
[388861207,1759434643688,-4540.0,0.00017969,2]
[388861208,1759434643770,-523.128263,0.00017969,2]
[388861211,1759434646228,-481.93713952,0.00017969,2]
[388861213,1759434646327,-2995.61924777,0.00017969,2]
[388861214,1759434646387,-1238.00763,0.00017969,2]
[388861215,1759434646398,-29194.59253958,0.00017969,2]
[388861216,1759434646409,-2205.2381307,0.00017969,2]
[388861217,1759434646418,-3453.01082,0.0001799,2]
[388861218,1759434646429,-3453.01083,0.0001805,2]
[388861219,1759434646439,-340.0549,0.00018055,2]
[388861220,1759434646449,-1107.57,0.00018081,2]
[388861221,1759434646458,-300.0,0.00018082,2]
[388861222,1759434646468,-3453.01082,0.00018091,2]
[388861223,1759434646477,-3453.01083,0.0001812,2]
[388861224,1759434646487,-3453.01082,0.0001818,2]
[388861225,1759434646496,-301.0,0.00018258,2]
[388861226,1759434646506,-300.0,0.00018258,2]
[388861227,1759434646515,-195.0,0.00018273,2]
[388861228,1759434646524,-2000.0,0.00018273,2]
[388861229,1759434646533,-164.0,0.0001828,2]
[388861230,1759434646543,-14767.5164044,0.00018308,2]
[388861231,1759434646553,-473.08,0.0001832,2]
[388861232,1759434646562,-250.0,0.0001832,2]
[388861233,1759434646572,-300.0,0.0001832,2]
[388861234,1759434646581,-2500.0,0.0001832,2]
[388861235,1759434646590,-250.0,0.0001832,2]
[388861236,1759434646600,-300.0,0.0001832,2]
[388861237,1759434646609,-250.70092542,0.0001832,2]
[388861238,1759434646619,-500.0,0.0001832,2]
[388861239,1759434646628,-195.0,0.0001832,2]
[388861240,1759434646637,-300.0,0.0001832,2]
[388861241,1759434646647,-300.0,0.0001832,2]
[388861242,1759434646657,-500.0,0.0001832,2]
[388861243,1759434646666,-1680.0,0.00018349,2]
[388861244,1759434646675,-1107.57,0.00018355,2]
[388861245,1759434646685,-1365.74,0.00018356,2]
[388861246,1759434646695,-382.48057971,0.00018455,2]
[388861247,1759434646704,-257.91778498,0.00018458,2]
[388861248,1759434646713,-334.5472959,0.00018458,2]
[388861249,1759434646722,-300.98,0.000185,2]
[388861250,1759434646731,-302.52,0.000185,2]
[388861251,1759434646741,-1987.7726948,0.000185,2]
[388861252,1759434646750,-432.8,0.000185,2]
[388861254,1759434646760,-443.64,0.000185,2]
[388861255,1759434646769,-443.73,0.000185,2]
[388861256,1759434646779,-432.51,0.000185,2]
[388861257,1759434646788,-441.72,0.000185,2]
[388861258,1759434646798,-434.69,0.000185,2]
[388861259,1759434646807,-438.39,0.000185,2]
[388861260,1759434646816,-436.16,0.000185,2]
[388861261,1759434646826,-443.65,0.000185,2]
[388861262,1759434646835,-439.87,0.000185,2]
[388861263,1759434646845,-441.33,0.000185,2]
[388861264,1759434646854,-440.89,0.000185,2]
[388861265,1759434646864,-302.37,0.0001853,2]
[388861266,1759434646873,-434.06,0.00018571,2]
[388861267,1759434646882,-436.5,0.00018571,2]
[388861269,1759434646892,-438.38,0.00018571,2]
[388861270,1759434646901,-1111.01370776,0.00018575,2]
[388861271,1759434646912,-1107.57,0.00018628,2]
[388861272,1759434646921,-500.0,0.00018658,2]
[388861273,1759434646930,-160.0,0.000187,2]
[388861274,1759434646939,-162.54752212,0.000187,2]
[388861275,1759434646948,-175.47865263,0.000187,2]
[388861276,1759434646957,-370.49393606,0.00018755,2]
[388861277,1759434646966,-176.0,0.00018818,2]
[388861278,1759434646975,-160.0,0.000189,2]
[388861279,1759434646984,-162.54752212,0.000189,2]
[388861280,1759434646994,-553.24157163,0.00018902,2]
[388861281,1759434647136,-554.32842837,0.00018902,2]
[388861282,1759434647145,-294.61613621,0.00018916,2]
[388861283,1759434647233,-5.38386379,0.00018916,2]
[388861284,1759434647243,-4585.0,0.00018918,2]
[388861285,1759434647253,-810.51838477,0.00018951,2]
[388861286,1759434647262,-200.0,0.00018996,2]
[388861287,1759434647271,-200.0,0.00018997,2]
[388861288,1759434647279,-1000.0,0.00018999,3]
[388861289,1759434647288,-1000.0,0.00018999,2]
[388861290,1759434647296,-1000.0,0.00018999,4]
[388861291,1759434647305,-1000.0,0.00018999,5]
[388861292,1759434647313,-1000.0,0.00018999,6]
[388861293,1759434647323,-1000.0,0.00018999,7]
[388861294,1759434647331,-1000.0,0.00018999,8]
[388861295,1759434647340,-1000.0,0.00018999,9]
[388861296,1759434647348,-300.0,0.00019,2]
[388861297,1759434647356,-1524.3863625,0.00019032,2]
[388861298,1759434647365,-1301.5274037,0.00019032,2]
[388861299,1759434647374,-169.95,0.00019043,2]
[388861300,1759434647384,-3393.65850623,0.00019059,2]
[388861301,1759434647394,-157.9217305,0.00019059,2]
[388861302,1759434647404,-741.76297963,0.00019059,2]
[388861303,1759434647413,-162.54752212,0.000191,2]
[388861304,1759434647423,-263.94,0.00019108,2]
[388861305,1759434647432,-150.0,0.00019118,2]